[Event "Titled Tuesday Blitz June 6 Late 2023"]
[White "Yeritsyan, Hayk"]
[Black "Campos, Maria Jose"]
[WhiteFideId "13307320"]
[BlackFideId "146803"]
[WhiteElo "2492"]
[BlackElo "2170"]
[Result "1-0"]
[Round "10"]
[TimeControl "180+2"]
[Date "2023.06.07"]
[WhiteClock "0:00:14"]
[BlackClock "0:00:05"]
[Board "66"]

1. d4 {[%clk 0:03:00]}  Nf6 {[%clk 0:02:57]} 2. Nf3 {[%clk 0:03:01]}  e6 {[%clk 0:02:56]} 3. e3 {[%clk 0:02:57]}  c5 {[%clk 0:02:54]} 4. Bd3 {[%clk 0:02:57]}  d5 {[%clk 0:02:53]} 5. c3 {[%clk 0:02:57]}  Nc6 {[%clk 0:02:52]} 6. Nbd2 {[%clk 0:02:57]}  Bd6 {[%clk 0:02:48]} 7. Qe2 {[%clk 0:02:57]}  O-O {[%clk 0:02:48]} 8. O-O {[%clk 0:02:58]}  e5 {[%clk 0:02:48]} 9. dxc5 {[%clk 0:02:58]}  Bxc5 {[%clk 0:02:48]} 10. e4 {[%clk 0:02:59]}  d4 {[%clk 0:02:47]} 11. Nb3 {[%clk 0:02:59]}  Bb6 {[%clk 0:02:47]} 12. cxd4 {[%clk 0:02:59]}  Nxd4 {[%clk 0:02:45]} 13. Nfxd4 {[%clk 0:02:59]}  Bxd4 {[%clk 0:02:45]} 14. Nxd4 {[%clk 0:02:59]}  Qxd4 {[%clk 0:02:46]} 15. Be3 {[%clk 0:02:55]}  Qb4 {[%clk 0:02:46]} 16. f3 {[%clk 0:02:47]}  Be6 {[%clk 0:02:45]} 17. a3 {[%clk 0:02:45]}  Qa5 {[%clk 0:02:44]} 18. Rac1 {[%clk 0:02:42]}  Rac8 {[%clk 0:02:42]} 19. Rxc8 {[%clk 0:02:18]}  Rxc8 {[%clk 0:02:41]} 20. Rc1 {[%clk 0:02:17]}  Rxc1+ {[%clk 0:02:40]} 21. Bxc1 {[%clk 0:02:18]}  Nh5 {[%clk 0:02:26]} 22. g3 {[%clk 0:02:05]}  Nf6 {[%clk 0:02:24]} 23. Bd2 {[%clk 0:01:49]}  Qc7 {[%clk 0:02:21]} 24. Bc3 {[%clk 0:01:44]}  h5 {[%clk 0:02:20]} 25. h4 {[%clk 0:01:41]}  Nd7 {[%clk 0:02:17]} 26. Qe3 {[%clk 0:01:34]}  b6 {[%clk 0:02:15]} 27. Be2 {[%clk 0:01:05]}  Qd6 {[%clk 0:01:27]} 28. Kg2 {[%clk 0:01:03]}  Nc5 {[%clk 0:01:23]} 29. Qg5 {[%clk 0:00:59]}  f6 {[%clk 0:01:19]} 30. Qxh5 {[%clk 0:00:59]}  Bf7 {[%clk 0:01:04]} 31. Qg4 {[%clk 0:00:54]}  Ne6 {[%clk 0:01:03]} 32. Bc4 {[%clk 0:00:21]}  a5 {[%clk 0:00:39]} 33. h5 {[%clk 0:00:20]}  Kf8 {[%clk 0:00:37]} 34. Bd5 {[%clk 0:00:19]}  Qd7 {[%clk 0:00:23]} 35. Qh4 {[%clk 0:00:17]}  Ng5 {[%clk 0:00:12]} 36. Bxf7 {[%clk 0:00:16]}  Qxf7 {[%clk 0:00:13]} 37. h6 {[%clk 0:00:16]}  Kg8 {[%clk 0:00:12]} 38. hxg7 {[%clk 0:00:16]}  Qxg7 {[%clk 0:00:11]} 39. Qg4 {[%clk 0:00:16]}  Qc7 {[%clk 0:00:10]} 40. f4 {[%clk 0:00:15]}  exf4 {[%clk 0:00:08]} 41. gxf4 {[%clk 0:00:15]}  Qd7 {[%clk 0:00:05]} 42. Qxd7 {[%clk 0:00:14]} 1-0


[Site "https://www.chess.com"]

[Event "Titled Tuesday Blitz June 6 Late 2023"]
[White "Prieto Aranguren, Alain"]
[Black "Seletsky, Grigory"]
[WhiteFideId "2268906"]
[BlackFideId "14112191"]
[WhiteElo "2209"]
[BlackElo "2491"]
[Result "1-0"]
[Round "10"]
[TimeControl "180+2"]
[Date "2023.06.07"]
[WhiteClock "0:00:09"]
[BlackClock "0:00:02"]
[Board "67"]

1. e4 {[%clk 0:03:00]}  c6 {[%clk 0:02:57]} 2. d4 {[%clk 0:03:00]}  d5 {[%clk 0:02:57]} 3. exd5 {[%clk 0:03:00]}  cxd5 {[%clk 0:02:57]} 4. Bd3 {[%clk 0:03:01]}  Nc6 {[%clk 0:02:57]} 5. Nf3 {[%clk 0:03:01]}  g6 {[%clk 0:02:54]} 6. O-O {[%clk 0:03:01]}  Bg7 {[%clk 0:02:53]} 7. Re1 {[%clk 0:03:00]}  Bf5 {[%clk 0:02:53]} 8. Bxf5 {[%clk 0:02:50]}  gxf5 {[%clk 0:02:53]} 9. c3 {[%clk 0:02:47]}  e6 {[%clk 0:02:52]} 10. Bf4 {[%clk 0:02:35]}  Nge7 {[%clk 0:02:47]} 11. Ne5 {[%clk 0:02:34]}  O-O {[%clk 0:02:45]} 12. Nd2 {[%clk 0:02:32]}  Nxe5 {[%clk 0:02:44]} 13. Bxe5 {[%clk 0:02:32]}  Bxe5 {[%clk 0:02:40]} 14. Rxe5 {[%clk 0:02:31]}  Ng6 {[%clk 0:02:39]} 15. Re3 {[%clk 0:02:30]}  Kh8 {[%clk 0:02:36]} 16. Rh3 {[%clk 0:02:29]}  Rg8 {[%clk 0:02:34]} 17. Qh5 {[%clk 0:02:24]}  Rg7 {[%clk 0:02:34]} 18. Qh6 {[%clk 0:02:10]}  Ne7 {[%clk 0:01:56]} 19. Nf3 {[%clk 0:02:01]}  Ng8 {[%clk 0:01:54]} 20. Qf4 {[%clk 0:01:54]}  Qf6 {[%clk 0:01:36]} 21. Re1 {[%clk 0:01:51]}  Ne7 {[%clk 0:01:31]} 22. Qe5 {[%clk 0:01:47]}  Qxe5 {[%clk 0:01:28]} 23. Nxe5 {[%clk 0:01:46]}  Rag8 {[%clk 0:01:17]} 24. Rg3 {[%clk 0:01:45]}  Rxg3 {[%clk 0:01:16]} 25. hxg3 {[%clk 0:01:44]}  Kg7 {[%clk 0:01:16]} 26. f3 {[%clk 0:01:43]}  Rc8 {[%clk 0:01:17]} 27. Kf2 {[%clk 0:01:42]}  Nc6 {[%clk 0:01:17]} 28. Nxc6 {[%clk 0:01:41]}  Rxc6 {[%clk 0:01:15]} 29. Ke3 {[%clk 0:01:40]}  b5 {[%clk 0:01:15]} 30. Kd3 {[%clk 0:01:40]}  a5 {[%clk 0:01:14]} 31. a3 {[%clk 0:01:39]}  b4 {[%clk 0:01:02]} 32. cxb4 {[%clk 0:01:39]}  axb4 {[%clk 0:01:01]} 33. a4 {[%clk 0:01:39]}  b3 {[%clk 0:01:00]} 34. Re2 {[%clk 0:01:07]}  Ra6 {[%clk 0:00:54]} 35. Kc3 {[%clk 0:01:06]}  Rxa4 {[%clk 0:00:55]} 36. Rd2 {[%clk 0:01:03]}  Kf6 {[%clk 0:00:49]} 37. Kxb3 {[%clk 0:01:03]}  Rc4 {[%clk 0:00:47]} 38. Ka3 {[%clk 0:01:01]}  Ke7 {[%clk 0:00:47]} 39. b4 {[%clk 0:01:01]}  Kd6 {[%clk 0:00:48]} 40. Ka4 {[%clk 0:00:59]}  Kc6 {[%clk 0:00:47]} 41. Ka5 {[%clk 0:00:59]}  Kb7 {[%clk 0:00:44]} 42. Kb5 {[%clk 0:00:56]}  h5 {[%clk 0:00:43]} 43. Ka5 {[%clk 0:00:47]}  Kc6 {[%clk 0:00:32]} 44. b5+ {[%clk 0:00:45]}  Kb7 {[%clk 0:00:32]} 45. b6 {[%clk 0:00:43]}  Rc1 {[%clk 0:00:29]} 46. Rb2 {[%clk 0:00:36]}  Rc6 {[%clk 0:00:19]} 47. Rb4 {[%clk 0:00:31]}  Rd6 {[%clk 0:00:18]} 48. Rb2 {[%clk 0:00:29]}  f6 {[%clk 0:00:18]} 49. Rb4 {[%clk 0:00:24]}  e5 {[%clk 0:00:16]} 50. Rb2 {[%clk 0:00:22]}  e4 {[%clk 0:00:14]} 51. Rb3 {[%clk 0:00:20]}  Rc6 {[%clk 0:00:12]} 52. Rb2 {[%clk 0:00:17]}  Rd6 {[%clk 0:00:11]} 53. Rb3 {[%clk 0:00:17]}  Re6 {[%clk 0:00:11]} 54. Rb2 {[%clk 0:00:11]}  Rc6 {[%clk 0:00:10]} 55. Rb3 {[%clk 0:00:11]}  Rd6 {[%clk 0:00:09]} 56. Rb2 {[%clk 0:00:11]}  Re6 {[%clk 0:00:08]} 57. Rb1 {[%clk 0:00:10]}  e3 {[%clk 0:00:08]} 58. Re1 {[%clk 0:00:09]}  e2 {[%clk 0:00:07]} 59. f4 {[%clk 0:00:09]}  Re7 {[%clk 0:00:06]} 60. Kb5 {[%clk 0:00:09]}  Re4 {[%clk 0:00:05]} 61. Kc5 {[%clk 0:00:09]}  Re3 {[%clk 0:00:03]} 62. Kxd5 {[%clk 0:00:09]}  Kxb6 {[%clk 0:00:02]} 63. Kd6 {[%clk 0:00:09]}  Kb7 {[%clk 0:00:02]} 64. d5 {[%clk 0:00:09]} 1-0


[Site "https://www.chess.com"]

[Event "Titled Tuesday Blitz June 6 Late 2023"]
[White "Alexikov, Alexander"]
[Black "Cardozo Munar, Carlos Eduardo"]
[WhiteFideId "14103958"]
[BlackFideId "4409477"]
[WhiteElo "2186"]
[BlackElo "2067"]
[Result "0-1"]
[Round "10"]
[TimeControl "180+2"]
[Date "2023.06.07"]
[WhiteClock "0:00:12"]
[BlackClock "0:00:46"]
[Board "68"]

1. e4 {[%clk 0:03:00]}  e6 {[%clk 0:02:58]} 2. d4 {[%clk 0:02:58]}  d5 {[%clk 0:02:59]} 3. Nc3 {[%clk 0:02:58]}  Nf6 {[%clk 0:02:58]} 4. e5 {[%clk 0:02:57]}  Nfd7 {[%clk 0:02:59]} 5. f4 {[%clk 0:02:57]}  c5 {[%clk 0:02:59]} 6. Nf3 {[%clk 0:02:57]}  Nc6 {[%clk 0:03:00]} 7. Be3 {[%clk 0:02:56]}  Qb6 {[%clk 0:03:01]} 8. Na4 {[%clk 0:02:49]}  Qc7 {[%clk 0:02:59]} 9. dxc5 {[%clk 0:02:41]}  b5 {[%clk 0:02:38]} 10. cxb6 {[%clk 0:02:39]}  axb6 {[%clk 0:02:36]} 11. Nc3 {[%clk 0:02:28]}  Bc5 {[%clk 0:02:35]} 12. Nb5 {[%clk 0:02:23]}  Qb8 {[%clk 0:02:31]} 13. Qd2 {[%clk 0:02:14]}  O-O {[%clk 0:02:30]} 14. c3 {[%clk 0:02:13]}  Ba6 {[%clk 0:02:29]} 15. a4 {[%clk 0:02:07]}  Bxe3 {[%clk 0:02:25]} 16. Qxe3 {[%clk 0:02:06]}  Nc5 {[%clk 0:02:26]} 17. Be2 {[%clk 0:01:47]}  Rd8 {[%clk 0:02:25]} 18. O-O {[%clk 0:01:44]}  Na5 {[%clk 0:02:24]} 19. b4 {[%clk 0:01:35]}  Ncb3 {[%clk 0:02:08]} 20. bxa5 {[%clk 0:01:25]}  Nxa1 {[%clk 0:02:08]} 21. Rxa1 {[%clk 0:01:23]}  bxa5 {[%clk 0:02:08]} 22. Nfd4 {[%clk 0:01:20]}  Rc8 {[%clk 0:02:08]} 23. Rb1 {[%clk 0:01:17]}  g6 {[%clk 0:02:03]} 24. h4 {[%clk 0:01:15]}  h5 {[%clk 0:02:02]} 25. Kh2 {[%clk 0:01:12]}  Rf8 {[%clk 0:01:52]} 26. c4 {[%clk 0:01:09]}  Qd8 {[%clk 0:01:52]} 27. Kg3 {[%clk 0:01:04]}  dxc4 {[%clk 0:01:50]} 28. Bxc4 {[%clk 0:01:03]}  Qd7 {[%clk 0:01:38]} 29. Rd1 {[%clk 0:00:57]}  Rfd8 {[%clk 0:01:37]} 30. Rd2 {[%clk 0:00:54]}  Bxb5 {[%clk 0:01:31]} 31. Bxb5 {[%clk 0:00:51]}  Qd5 {[%clk 0:01:31]} 32. Rd3 {[%clk 0:00:49]}  Qa2 {[%clk 0:01:26]} 33. Qd2 {[%clk 0:00:47]}  Qb1 {[%clk 0:01:18]} 34. Nf3 {[%clk 0:00:41]}  Rxd3 {[%clk 0:01:14]} 35. Bxd3 {[%clk 0:00:38]}  Qb4 {[%clk 0:01:12]} 36. Bb5 {[%clk 0:00:37]}  Qb1 {[%clk 0:01:07]} 37. Kh2 {[%clk 0:00:36]}  Qf5 {[%clk 0:00:57]} 38. Bd3 {[%clk 0:00:29]}  Qg4 {[%clk 0:00:57]} 39. Be2 {[%clk 0:00:24]}  Kg7 {[%clk 0:00:53]} 40. g3 {[%clk 0:00:23]}  Qf5 {[%clk 0:00:53]} 41. Bd3 {[%clk 0:00:18]}  Qg4 {[%clk 0:00:52]} 42. Kg2 {[%clk 0:00:18]}  Rd8 {[%clk 0:00:52]} 43. Nh2 {[%clk 0:00:18]}  Qf5 {[%clk 0:00:50]} 44. Bxf5 {[%clk 0:00:13]}  Rxd2+ {[%clk 0:00:50]} 45. Kh3 {[%clk 0:00:12]}  gxf5 {[%clk 0:00:49]} 46. Nf3 {[%clk 0:00:13]}  Ra2 {[%clk 0:00:49]} 47. Nd4 {[%clk 0:00:12]}  Rxa4 {[%clk 0:00:49]} 48. Nb5 {[%clk 0:00:12]}  Rb4 {[%clk 0:00:48]} 49. Nd6 {[%clk 0:00:12]}  a4 {[%clk 0:00:46]} 0-1


[Site "https://www.chess.com"]

[Event "Titled Tuesday Blitz June 6 Late 2023"]
[White "Shapiro, Viktor"]
[Black "Veiga, Jose Francisco R P Neves"]
[WhiteFideId "4175700"]
[BlackFideId "1930087"]
[WhiteElo "2212"]
[BlackElo "2319"]
[Result "0-1"]
[Round "10"]
[TimeControl "180+2"]
[Date "2023.06.07"]
[WhiteClock "0:00:20"]
[BlackClock "0:00:32"]
[Board "69"]

1. c4 {[%clk 0:03:00]}  f6 {[%clk 0:03:00]} 2. Nc3 {[%clk 0:03:01]}  c5 {[%clk 0:02:56]} 3. Nf3 {[%clk 0:03:00]}  Nc6 {[%clk 0:02:53]} 4. e3 {[%clk 0:02:57]}  Nh6 {[%clk 0:02:50]} 5. d4 {[%clk 0:02:58]}  d6 {[%clk 0:02:50]} 6. Bd3 {[%clk 0:02:55]}  Nf7 {[%clk 0:02:49]} 7. h3 {[%clk 0:02:55]}  e5 {[%clk 0:02:49]} 8. d5 {[%clk 0:02:50]}  Ne7 {[%clk 0:02:48]} 9. a3 {[%clk 0:02:40]}  g6 {[%clk 0:02:49]} 10. e4 {[%clk 0:02:39]}  Bg7 {[%clk 0:02:49]} 11. O-O {[%clk 0:02:39]}  O-O {[%clk 0:02:49]} 12. b4 {[%clk 0:02:39]}  b6 {[%clk 0:02:49]} 13. bxc5 {[%clk 0:02:38]}  bxc5 {[%clk 0:02:48]} 14. Rb1 {[%clk 0:02:36]}  f5 {[%clk 0:02:48]} 15. Bd2 {[%clk 0:02:23]}  f4 {[%clk 0:02:48]} 16. Be2 {[%clk 0:02:22]}  g5 {[%clk 0:02:48]} 17. Nh2 {[%clk 0:02:22]}  Nh6 {[%clk 0:02:46]} 18. Ng4 {[%clk 0:02:20]}  Nf7 {[%clk 0:02:47]} 19. Nh2 {[%clk 0:02:18]}  Nh6 {[%clk 0:02:46]} 20. a4 {[%clk 0:02:10]}  Ng6 {[%clk 0:02:45]} 21. Ng4 {[%clk 0:02:02]}  Nf7 {[%clk 0:02:44]} 22. Nh2 {[%clk 0:01:58]}  Nh6 {[%clk 0:02:42]} 23. Bg4 {[%clk 0:01:49]}  Nxg4 {[%clk 0:02:42]} 24. hxg4 {[%clk 0:01:48]}  Nh4 {[%clk 0:02:40]} 25. f3 {[%clk 0:01:47]}  h5 {[%clk 0:02:34]} 26. gxh5 {[%clk 0:01:47]}  Kf7 {[%clk 0:02:21]} 27. Kf2 {[%clk 0:01:31]}  Rh8 {[%clk 0:02:21]} 28. Ng4 {[%clk 0:01:30]}  Rxh5 {[%clk 0:02:21]} 29. Rh1 {[%clk 0:01:30]}  Rh8 {[%clk 0:02:14]} 30. Qb3 {[%clk 0:01:22]}  Ng6 {[%clk 0:02:10]} 31. Qb5 {[%clk 0:01:18]}  Bxg4 {[%clk 0:01:58]} 32. fxg4 {[%clk 0:01:18]}  Rxh1 {[%clk 0:01:57]} 33. Rxh1 {[%clk 0:01:18]}  Qc8 {[%clk 0:01:58]} 34. Qc6 {[%clk 0:01:07]}  Qxc6 {[%clk 0:01:42]} 35. dxc6 {[%clk 0:01:07]}  Ne7 {[%clk 0:01:43]} 36. Rb1 {[%clk 0:01:06]}  Nxc6 {[%clk 0:01:41]} 37. Rb7+ {[%clk 0:01:06]}  Kg8 {[%clk 0:01:38]} 38. Nd5 {[%clk 0:01:06]}  Rb8 {[%clk 0:01:34]} 39. Rc7 {[%clk 0:01:06]}  Nd4 {[%clk 0:01:34]} 40. Rxa7 {[%clk 0:01:03]}  Rb2 {[%clk 0:01:33]} 41. Ke1 {[%clk 0:01:03]}  f3 {[%clk 0:01:30]} 42. g3 {[%clk 0:00:54]}  f2+ {[%clk 0:01:22]} 43. Kxf2 {[%clk 0:00:54]}  Rxd2+ {[%clk 0:01:23]} 44. Kf1 {[%clk 0:00:55]}  Ne2 {[%clk 0:01:06]} 45. a5 {[%clk 0:00:46]}  Nxg3+ {[%clk 0:01:03]} 46. Kg1 {[%clk 0:00:44]}  Nxe4 {[%clk 0:01:02]} 47. a6 {[%clk 0:00:44]}  Ra2 {[%clk 0:00:56]} 48. Ra8+ {[%clk 0:00:42]}  Kf7 {[%clk 0:00:54]} 49. a7 {[%clk 0:00:42]}  Nd2 {[%clk 0:00:49]} 50. Nb6 {[%clk 0:00:41]}  e4 {[%clk 0:00:45]} 51. Rd8 {[%clk 0:00:20]}  Nf3+ {[%clk 0:00:39]} 52. Kf1 {[%clk 0:00:20]}  Ra1+ {[%clk 0:00:38]} 53. Ke2 {[%clk 0:00:20]}  Re1+ {[%clk 0:00:37]} 54. Kf2 {[%clk 0:00:20]}  Bd4+ {[%clk 0:00:38]} 55. Kg3 {[%clk 0:00:20]}  Rg1+ {[%clk 0:00:32]} 56. Kh3 {[%clk 0:00:20]}  Rh1+ {[%clk 0:00:31]} 57. Kg2 {[%clk 0:00:21]}  Rh2+ {[%clk 0:00:32]} 58. Kf1 {[%clk 0:00:20]}  Rf2# {[%clk 0:00:32]} 0-1


[Site "https://www.chess.com"]

[Event "Titled Tuesday Blitz June 6 Late 2023"]
[White "Buchenau, Frank"]
[Black "Palencia Morales, Wilson Guillermo"]
[WhiteFideId "4604350"]
[BlackFideId "4401859"]
[WhiteElo "2157"]
[BlackElo "2144"]
[Result "1-0"]
[Round "10"]
[TimeControl "180+2"]
[Date "2023.06.07"]
[WhiteClock "0:02:02"]
[BlackClock "0:02:27"]
[Board "71"]

1. e4 {[%clk 0:03:00]}  c5 {[%clk 0:02:59]} 2. Nf3 {[%clk 0:02:59]}  d6 {[%clk 0:03:00]} 3. Bb5+ {[%clk 0:02:59]}  Nd7 {[%clk 0:02:59]} 4. O-O {[%clk 0:02:58]}  Nf6 {[%clk 0:02:54]} 5. Re1 {[%clk 0:02:57]}  a6 {[%clk 0:02:54]} 6. Bf1 {[%clk 0:02:57]}  b6 {[%clk 0:02:53]} 7. d4 {[%clk 0:02:56]}  cxd4 {[%clk 0:02:53]} 8. Nxd4 {[%clk 0:02:56]}  Bb7 {[%clk 0:02:54]} 9. c4 {[%clk 0:02:55]}  e6 {[%clk 0:02:53]} 10. Nc3 {[%clk 0:02:55]}  Rc8 {[%clk 0:02:53]} 11. f4 {[%clk 0:02:52]}  Qc7 {[%clk 0:02:52]} 12. Kh1 {[%clk 0:02:44]}  Be7 {[%clk 0:02:52]} 13. b3 {[%clk 0:02:39]}  b5 {[%clk 0:02:51]} 14. Bb2 {[%clk 0:02:38]}  bxc4 {[%clk 0:02:47]} 15. Bxc4 {[%clk 0:02:36]}  Qb8 {[%clk 0:02:47]} 16. Bxe6 {[%clk 0:02:32]}  fxe6 {[%clk 0:02:47]} 17. Nxe6 {[%clk 0:02:32]}  Kf7 {[%clk 0:02:45]} 18. Ng5+ {[%clk 0:02:31]}  Kg8 {[%clk 0:02:44]} 19. e5 {[%clk 0:02:29]}  dxe5 {[%clk 0:02:41]} 20. fxe5 {[%clk 0:02:29]}  Nxe5 {[%clk 0:02:40]} 21. Nd5 {[%clk 0:02:13]}  Bxd5 {[%clk 0:02:34]} 22. Bxe5 {[%clk 0:02:13]}  Qb7 {[%clk 0:02:34]} 23. Qe2 {[%clk 0:02:06]}  h6 {[%clk 0:02:31]} 24. Bxf6 {[%clk 0:02:04]}  Bxf6 {[%clk 0:02:27]} 25. Qe8+ {[%clk 0:02:02]} 1-0


[Site "https://www.chess.com"]

[Event "Titled Tuesday Blitz June 6 Late 2023"]
[White "Ai, Evan"]
[Black "Camilla_Lee"]
[WhiteFideId "2094770"]
[WhiteElo "1963"]
[BlackElo "2496"]
[Result "1-0"]
[Round "10"]
[TimeControl "180+2"]
[Date "2023.06.07"]
[WhiteClock "0:00:49"]
[BlackClock "0:00:07"]
[Board "73"]

1. e4 {[%clk 0:03:00]}  e5 {[%clk 0:02:59]} 2. f4 {[%clk 0:03:01]}  d5 {[%clk 0:02:59]} 3. Nf3 {[%clk 0:02:59]}  dxe4 {[%clk 0:02:59]} 4. Nxe5 {[%clk 0:03:00]}  Nd7 {[%clk 0:02:59]} 5. Nxd7 {[%clk 0:02:59]}  Bxd7 {[%clk 0:02:59]} 6. Nc3 {[%clk 0:03:00]}  Nf6 {[%clk 0:03:00]} 7. Bc4 {[%clk 0:02:59]}  Bc5 {[%clk 0:02:53]} 8. d4 {[%clk 0:02:59]}  exd3 {[%clk 0:02:53]} 9. Qxd3 {[%clk 0:02:59]}  O-O {[%clk 0:02:53]} 10. Bd2 {[%clk 0:02:57]}  Re8+ {[%clk 0:02:52]} 11. Ne2 {[%clk 0:02:58]}  Bg4 {[%clk 0:02:45]} 12. Qxd8 {[%clk 0:02:56]}  Raxd8 {[%clk 0:02:46]} 13. Bc3 {[%clk 0:02:37]}  Bxe2 {[%clk 0:02:05]} 14. Bxe2 {[%clk 0:02:35]}  Re4 {[%clk 0:02:05]} 15. Rd1 {[%clk 0:02:19]}  Rde8 {[%clk 0:01:59]} 16. Be5 {[%clk 0:02:17]}  Ng4 {[%clk 0:01:56]} 17. Rd5 {[%clk 0:02:08]}  Nxe5 {[%clk 0:00:51]} 18. Rxe5 {[%clk 0:02:03]}  R4xe5 {[%clk 0:00:51]} 19. fxe5 {[%clk 0:02:04]}  Rxe5 {[%clk 0:00:52]} 20. Kd2 {[%clk 0:02:05]}  g6 {[%clk 0:00:51]} 21. Bd3 {[%clk 0:01:59]}  Bd6 {[%clk 0:00:48]} 22. g3 {[%clk 0:01:57]}  Rh5 {[%clk 0:00:42]} 23. Be4 {[%clk 0:01:53]}  c6 {[%clk 0:00:38]} 24. Bf3 {[%clk 0:01:53]}  Rf5 {[%clk 0:00:37]} 25. Rf1 {[%clk 0:01:52]}  Kg7 {[%clk 0:00:35]} 26. Bg2 {[%clk 0:01:52]}  Re5 {[%clk 0:00:35]} 27. Re1 {[%clk 0:01:52]}  Rh5 {[%clk 0:00:35]} 28. h3 {[%clk 0:01:47]}  Bxg3 {[%clk 0:00:35]} 29. Re7 {[%clk 0:01:46]}  Rb5 {[%clk 0:00:30]} 30. b3 {[%clk 0:01:46]}  Bd6 {[%clk 0:00:24]} 31. Rd7 {[%clk 0:01:46]}  Bf4+ {[%clk 0:00:24]} 32. Kd3 {[%clk 0:01:46]}  a5 {[%clk 0:00:18]} 33. a4 {[%clk 0:01:45]}  Rb6 {[%clk 0:00:18]} 34. Ke4 {[%clk 0:01:34]}  Bg3 {[%clk 0:00:15]} 35. Bf1 {[%clk 0:01:33]}  Kf6 {[%clk 0:00:15]} 36. Bc4 {[%clk 0:01:34]}  Kg5 {[%clk 0:00:15]} 37. Rxf7 {[%clk 0:01:34]}  c5 {[%clk 0:00:14]} 38. Rxh7 {[%clk 0:01:32]}  Rf6 {[%clk 0:00:14]} 39. Kd5 {[%clk 0:01:32]}  Rf4 {[%clk 0:00:14]} 40. Kxc5 {[%clk 0:01:32]}  Bf2+ {[%clk 0:00:15]} 41. Kd6 {[%clk 0:01:28]}  b6 {[%clk 0:00:16]} 42. Kc6 {[%clk 0:01:25]}  Rf6+ {[%clk 0:00:15]} 43. Kb5 {[%clk 0:01:25]}  Bc5 {[%clk 0:00:15]} 44. Bd3 {[%clk 0:01:25]}  Kf4 {[%clk 0:00:15]} 45. Rg7 {[%clk 0:01:25]}  g5 {[%clk 0:00:16]} 46. Rh7 {[%clk 0:01:25]}  Kg3 {[%clk 0:00:15]} 47. Rh5 {[%clk 0:01:24]}  Be3 {[%clk 0:00:16]} 48. c3 {[%clk 0:01:23]}  Rf2 {[%clk 0:00:13]} 49. b4 {[%clk 0:01:22]}  axb4 {[%clk 0:00:12]} 50. cxb4 {[%clk 0:01:23]}  Rb2 {[%clk 0:00:13]} 51. Kc4 {[%clk 0:01:10]}  Bd2 {[%clk 0:00:12]} 52. b5 {[%clk 0:01:09]}  Rb4+ {[%clk 0:00:12]} 53. Kd5 {[%clk 0:01:09]}  Rxa4 {[%clk 0:00:11]} 54. Kc6 {[%clk 0:01:09]}  Be3 {[%clk 0:00:12]} 55. Rh7 {[%clk 0:01:05]}  Ra3 {[%clk 0:00:12]} 56. Bf5 {[%clk 0:01:05]}  Rc3+ {[%clk 0:00:12]} 57. Kb7 {[%clk 0:01:05]}  Rc5 {[%clk 0:00:12]} 58. Bd7 {[%clk 0:01:04]}  Rd5 {[%clk 0:00:12]} 59. Re7 {[%clk 0:01:02]}  Bc5 {[%clk 0:00:11]} 60. Rf7 {[%clk 0:01:02]}  Re5 {[%clk 0:00:10]} 61. Kc6 {[%clk 0:01:00]}  Re3 {[%clk 0:00:09]} 62. Bg4 {[%clk 0:00:59]}  Kg2 {[%clk 0:00:07]} 63. Rf5 {[%clk 0:01:00]}  Re6+ {[%clk 0:00:06]} 64. Kd5 {[%clk 0:00:56]}  Rg6 {[%clk 0:00:07]} 65. Bh5 {[%clk 0:00:56]}  Rg7 {[%clk 0:00:07]} 66. Bg4 {[%clk 0:00:57]}  Kg3 {[%clk 0:00:07]} 67. Ke6 {[%clk 0:00:56]}  Be3 {[%clk 0:00:06]} 68. Kf6 {[%clk 0:00:56]}  Rg8 {[%clk 0:00:05]} 69. Kf7 {[%clk 0:00:56]}  Rd8 {[%clk 0:00:05]} 70. Re5 {[%clk 0:00:56]}  Bf4 {[%clk 0:00:05]} 71. Re6 {[%clk 0:00:57]}  Rb8 {[%clk 0:00:05]} 72. Ke7 {[%clk 0:00:56]}  Kf2 {[%clk 0:00:05]} 73. Rg6 {[%clk 0:00:56]}  Be3 {[%clk 0:00:05]} 74. Kd7 {[%clk 0:00:56]}  Ra8 {[%clk 0:00:05]} 75. Rf6+ {[%clk 0:00:53]}  Kg2 {[%clk 0:00:04]} 76. Kc6 {[%clk 0:00:51]}  Ra1 {[%clk 0:00:03]} 77. Kd5 {[%clk 0:00:49]}  Bf4 {[%clk 0:00:03]} 78. Rxb6 {[%clk 0:00:48]}  Rb1 {[%clk 0:00:03]} 79. Kc6 {[%clk 0:00:48]}  Be3 {[%clk 0:00:03]} 80. Rb8 {[%clk 0:00:48]}  Kf2 {[%clk 0:00:04]} 81. Rf8+ {[%clk 0:00:48]}  Kg3 {[%clk 0:00:04]} 82. Rf3+ {[%clk 0:00:47]}  Kg2 {[%clk 0:00:04]} 83. Rxe3 {[%clk 0:00:48]}  Rc1+ {[%clk 0:00:04]} 84. Kd5 {[%clk 0:00:48]}  Rb1 {[%clk 0:00:05]} 85. Kc5 {[%clk 0:00:48]}  Rc1+ {[%clk 0:00:06]} 86. Kb4 {[%clk 0:00:48]}  Rb1+ {[%clk 0:00:06]} 87. Rb3 {[%clk 0:00:49]}  Rc1 {[%clk 0:00:07]} 88. b6 {[%clk 0:00:49]} 1-0


[Site "https://www.chess.com"]